Cogmind - Beta 10.2 @@@ ROGUE MODE // 2021.02.13 @ 03:05:40 Player: Chloroform Result: Destroyed by G-47 Trooper with Particle Gun Performance ------------- Evolutions (2) 1000 Regions Visited (3) 600 Robots Destroyed (33) 165 Value Destroyed (840) 840 Prototype IDs (0) 0 Alien Tech Used (0) 0 Bonus (200) 200 TOTAL SCORE: 2805 Bonus ------- Pacifist 200 Cogmind --------- Core Integrity 0/550 Matter 222/300 Energy 100/100 System Corruption 0% Temperature Cool (18) Movement Core (550) Ox10 Location -8/Materials Parts ------- > --- POWER (1) -------- (None) > --- PROPULSION (3) --- (None) > --- UTILITY (4) ------ Large Storage Unit Large Storage Unit Terrain Scan Processor > --- WEAPON (3) ------- (None) > --- INVENTORY (16) --- Ion Engine Light Ion Engine Improved Ion Engine Light Treads Aluminum Leg Aluminum Leg Aluminum Leg Compact Wheel Improved Heat Shielding Large Storage Unit Signal Interpreter Terrain Scanner Peak State ------------ > --- POWER ------------ Ion Engine > --- PROPULSION ------- Compact Wheel Compact Wheel Compact Wheel > --- UTILITY ---------- Large Storage Unit Large Storage Unit Improved Terrain Scanner Terrain Scan Processor > --- WEAPON ----------- Particle Gun Beam Cannon Light Assault Rifle > --- INVENTORY -------- Ion Engine Light Ion Engine Improved Ion Engine Light Treads Aluminum Leg Aluminum Leg Aluminum Leg Compact Wheel Compact Wheel Improved Heat Shielding Large Storage Unit Signal Interpreter Terrain Scanner Medium Laser Medium Laser Particle Gun [Rating: 16] Favorites ----------- Power Ion Engine Engine Ion Engine Propulsion Aluminum Leg Treads Light Treads Leg Aluminum Leg Wheel Compact Wheel Utility Large Storage Unit Device Improved Terrain Scanner Storage Large Storage Unit Processor Terrain Scan Processor Weapon Particle Gun Energy Gun Particle Gun Energy Cannon Beam Cannon Ballistic Gun Assault Rifle Build | -11 -10 -9 -8 ------- Run | Scr Mat Mat Mat Slots Evolved 4 | . . 2 2 Power . | . . . . Propulsion 1 | . . 1 . Utility 2 | . . 1 1 Weapon 1 | . . . 1 Parts Attached 42 | 7 10 13 12 Power 3 | 2 . 1 . Engine 3 | 2 . 1 . Core . | . . . . Reactor . | . . . . Propulsion 16 | 2 6 4 4 Treads 2 | . 2 . . Leg 8 | 2 2 4 . Wheel 6 | . 2 . 4 Hover . | . . . . Flight . | . . . . Utility 6 | 1 2 1 2 Device 1 | . . . 1 Storage 4 | 1 2 1 . Processor 1 | . . . 1 Hackware . | . . . . Protection . | . . . . Artifact . | . . . . Weapon 17 | 2 2 7 6 Energy Gun 8 | 1 2 . 5 Energy Cannon 3 | . . 2 1 Ballistic Gun 6 | 1 . 5 . Ballistic Cannon . | . . . . Launcher . | . . . . Special Weapon . | . . . . Impact Weapon . | . . . . Slashing Weapon . | . . . . Piercing Weapon . | . . . . Special Melee Weapon . | . . . . Unidentified Prototypes . | . . . . Parts Lost 19 | . . 6 13 Power 2 | . . 1 1 Propulsion 7 | . . 3 4 Utility 1 | . . . 1 Weapon 9 | . . 2 7 Highest Loss Streak 13 | . . 2 13 Average Slot Usage (%) 94 | . 92 98 73 Engine 10 | . 14 9 5 Leg 29 | . 27 32 4 Wheel 1 | . . . 13 Storage 28 | . 21 33 18 Energy Gun 9 | . 22 4 6 Energy Cannon 2 | . . 2 6 Ballistic Gun 11 | . 4 14 4 Naked Turns . | . . . . Heaviest Build 59 | 13 43 59 45 Greatest Support 48 | 20 20 30 48 Greatest Overweight (x) 12 | 2 2 1 12 Average Overweight (x) . | . . 1 1 Largest Inventory Capacity 22 | 6 16 22 22 Average Capacity 17 | 5 9 21 16 Most Carried 22 | 6 16 22 18 Average Carried 15 | 3 8 19 14 Final Capacity 22 | 6 16 22 16 Final Carried 19 | 6 16 19 12 Class Distribution -------------------- 60% | Hauler-Mutant 34% | Mutant Dominant Class ---------------- Mutant | -10/Materials Hauler-Mutant | -9/Materials Mutant | -8/Materials Resources | -11 -10 -9 -8 ----------- Run | Scr Mat Mat Mat Matter Collected 831 | 257 . 574 . Remotely . | . . . . Salvage Created 1395 | . . 1340 55 Parts 85 | . . 83 2 Haulers Intercepted . | . . . . Recyclers Shooed 14 | . 1 13 . Parts Field Recycled . | . . . . Retrieved Matter . | . . . . Parts Self-Destructed . | . . . . Prevented . | . . . . Kills | -11 -10 -9 -8 ------- Run | Scr Mat Mat Mat Combat Hostiles Destroyed 21 | . . 20 1 Guns 19 | . . 18 1 Cannons 2 | . . 2 . Classes Destroyed 9 | . . 8 1 Worker 1 | . . 1 . Builder 1 | . . 1 . Recycler 6 | . . 6 . Operator 1 | . . 1 . Watcher 3 | . . 3 . Swarmer 3 | . . 3 . Grunt 13 | . . 13 . Brawler 1 | . . . 1 Sentry 4 | . . 4 . Best Kill Streak 4 | . . 4 1 Combat Bots Only 3 | . . 3 1 Max Kills in Single Turn 2 | . . 2 1 Gunslinging 1 | . . 1 . Exploded . | . . . . Melee . | . . . . Uniques/NPCs Destroyed . | . . . . Combat | -11 -10 -9 -8 -------- Run | Scr Mat Mat Mat Damage Taken 2609 | . 2 1091 1516 Core 736 | . . 175 561 Absorbed by Shields . | . . . . Core Remaining (%) 85 | 100 100 56 . Volleys Fired 104 | . . 93 11 Largest 3 | . . 2 3 Hottest 190 | . . 130 190 Shots Fired 209 | . . 186 23 Gun 182 | . . 169 13 Cannon 27 | . . 17 10 Launcher . | . . . . Special . | . . . . Kinetic 149 | . . 145 4 Thermal 60 | . . 41 19 Explosive . | . . . . Electromagnetic . | . . . . Robot Hit Streak 11 | . . 11 6 Robot Miss Streak 4 | . . 4 2 Penetration Max . | . . . . Secondary Targets 5 | . . 5 . Max Gunslinging Chain 1 | . . 1 . Shots Hit Robots 133 | . . 116 17 Core Hits 59 | . 1 51 7 Critical Hits 1 | . . 1 . Critical Kills . | . . . . Critical Parts Destroyed 1 | . . 1 . Melee Attacks . | . . . . Impact . | . . . . Slashing . | . . . . Piercing . | . . . . Sneak Attacks . | . . . . Combat Hostiles . | . . . . Follow-up Attacks . | . . . . Damage Inflicted 1958 | . 11 1660 287 Guns 1562 | . . 1458 104 Cannons 337 | . . 158 179 Explosions . | . . . . Melee . | . . . . Ramming 59 | . 11 44 4 Kinetic 1252 | . . 1223 29 Thermal 647 | . . 393 254 Explosive . | . . . . Electromagnetic . | . . . . Impact . | . . . . Slashing . | . . . . Piercing . | . . . . Highest Corruption 3 | . . 3 . Average Corruption 2 | . . 2 . Corruption Purged . | . . . . Effects 19 | . . 19 . Message Errors 7 | . . 7 . Matter Fused 1 | . . 1 . Heat Flow Errors 3 | . . 3 . Energy Discharges 2 | . . 2 . Data Loss (minor) 2 | . . 2 . Targeting Errors 4 | . . 4 . Overload Shots . | . . . . Overflow Damage . | . . . . Projectiles . | . . . . Explosions . | . . . . Melee . | . . . . Knockbacks . | . . . . Impact . | . . . . Kinetic . | . . . . Secondary . | . . . . Self-Inflicted Damage 13 | . 2 11 . Shots . | . . . . Rammed 9 | . 1 3 5 Targets Rammed 11 | . 2 4 5 Kicked 2 | . 1 1 . Crushed . | . . . . Highest Temperature 565 | . . 390 565 Average Temperature 136 | . . 95 281 Received Heat Transfer 1161 | . . 459 702 Effects 9 | . . 3 6 Shutdowns 1 | . . . 1 Energy Bleed 1 | . . . 1 Interference 2 | . . . 2 Matter Decay 2 | . . 1 1 Damage (minor) 3 | . . 2 1 Siege Activations . | . . . . Robots Corrupted . | . . . . Combat Hostiles . | . . . . Parts Fried . | . . . . Impact Corruptions . | . . . . Robots Melted . | . . . . Combat Hostiles . | . . . . Parts Melted 5 | . . 4 1 Heat Transferred 1406 | . . 888 518 Parts Sabotaged . | . . . . Parts Stolen . | . . . . Parts Stripped . | . . . . Power Chain Reactions . | . . . . Missiles Intercepted . | . . . . Alert | -11 -10 -9 -8 ------- Run | Scr Mat Mat Mat Peak Influence 439 | . . 439 210 Initial 185 | . . . 185 Average 122 | . . 180 162 Maximum Alert Level 2 | . . 2 1 Low Security (%) 76 | 100 100 63 81 Level 1 13 | . . 20 18 Level 2 9 | . . 15 . Level 3 . | . . . . Level 4 . | . . . . Level 5 . | . . . . High Security . | . . . . Max Security . | . . . . Squads Dispatched 4 | . . 2 2 Investigation . | . . . . Extermination . | . . . . Reinforcement 4 | . . 2 2 Assault . | . . . . Garrison . | . . . . Intercept . | . . . . Construction Impeded . | . . . . Haulers Reinforced . | . . . . Stealth | -11 -10 -9 -8 --------- Run | Scr Mat Mat Mat Distress Signals 3 | . . 3 . Communications Jammed . | . . . . Distress Signals . | . . . . Times Spotted 41 | . . 32 9 Peak Tracking Total 8 | . . 6 8 Tactical Retreats 5 | . . 4 1 Traps | -11 -10 -9 -8 ------- Run | Scr Mat Mat Mat Traps Triggered 2 | . . 2 . Indirectly . | . . . . Trap Hack Attempts . | . . . . Triggered . | . . . . Disarmed . | . . . . Reprogrammed . | . . . . Reused . | . . . . Traps Extracted . | . . . . Installed . | . . . . Triggered . | . . . . Machines | -11 -10 -9 -8 ---------- Run | Scr Mat Mat Mat Machines Disabled 3 | . . 3 . Max in Single Turn 1 | . . 1 . Machines Sabotaged . | . . . . Garrisons Compromised . | . . . . Overloaded Fab Kills . | . . . . Fab Network Shutdowns . | . . . . Hacking | -11 -10 -9 -8 --------- Run | Scr Mat Mat Mat Machines Accessed . | . . . . Terminals . | . . . . Fabricators . | . . . . Repair Stations . | . . . . Recycling Units . | . . . . Scanalyzers . | . . . . Garrison Access . | . . . . Total Hacks . | . . . . Successful . | . . . . Failed . | . . . . Catastrophic . | . . . . Database Lockouts . | . . . . Manual . | . . . . Terminals . | . . . . Fabricators . | . . . . Repair Stations . | . . . . Recycling Units . | . . . . Scanalyzers . | . . . . Garrison Access . | . . . . Terminal Hacks . | . . . . Fabricator Hacks . | . . . . Repair Station Hacks . | . . . . Recycling Unit Hacks . | . . . . Scanalyzer . | . . . . Garrison Access Hacks . | . . . . Unauthorized Hacks . | . . . . Terminals . | . . . . Fabricators . | . . . . Repair Stations . | . . . . Recycling Units . | . . . . Scanalyzers . | . . . . Garrison Access . | . . . . Data Cores Recovered . | . . . . Used . | . . . . Hacking Detections . | . . . . Full Trace Events . | . . . . Feedback Events . | . . . . Feedback Blocked . | . . . . Robot Schematics Acquired . | . . . . Robots Built . | . . . . Matter . | . . . . Time . | . . . . Total Robot Build Rating . | . . . . Part Schematics Acquired . | . . . . Parts Built . | . . . . Matter . | . . . . Time . | . . . . Total Part Build Rating . | . . . . Parts Repaired . | . . . . Time . | . . . . Parts Recycled . | . . . . Recycled Matter . | . . . . Retrieved Matter . | . . . . Retrieved Components . | . . . . Parts Scanalyzed . | . . . . Part Schematics Acquired . | . . . . Parts Damaged . | . . . . Bothacking | -11 -10 -9 -8 ------------ Run | Scr Mat Mat Mat Used RIF Installer . | . . . . Robots Hacked . | . . . . Non-combat . | . . . . Combat . | . . . . Robot Hacks Applied . | . . . . Relay Couplers Released . | . . . . Robots Rewired . | . . . . Allies Hacked . | . . . . Hacks Repelled . | . . . . Allies | -11 -10 -9 -8 -------- Run | Scr Mat Mat Mat Total Allies . | . . . . Largest Group . | . . . . Highest-Rated Group . | . . . . Highest-Rated Ally . | . . . . Total Orders . | . . . . Ally Attacks . | . . . . Total Damage . | . . . . Kills . | . . . . Allies Corrupted . | . . . . Allies Melted . | . . . . Intel | -11 -10 -9 -8 ------- Run | Scr Mat Mat Mat Robot Analysis Total . | . . . . Derelict Logs Recovered . | . . . . Drone Launches . | . . . . Drone Recoveries . | . . . . Exploration | -11 -10 -9 -8 ------------- Run | Scr Mat Mat Mat Turns Passed 1938 | 92 517 1170 159 Spaces Moved 1012 | 67 352 532 61 Core 13 | 10 . . 3 Treads . | . . . . Legs 957 | 57 352 532 16 Wheels 42 | . . . 42 Hover . | . . . . Flight . | . . . . Fastest Speed 50 | 50 120 150 100 Average Speed 142 | 115 135 150 140 Slowest Speed 650 | 150 180 150 650 Overloaded Moves . | . . . . Propulsion Burnouts . | . . . . Robots Hopped . | . . . . Cave-ins Triggered . | . . . . Exploration Rate (%) 21 | 4 33 41 9 Regions Visited 3 Branch Regions . Pre-discovered Areas . | . . . . Known Exits Taken . | . . . . Unknown Exits Taken 3 | 1 1 1 . Scrap Searched . | . . . . Spaces Dug . | . . . . Terrain Destroyed . | . . . . Melee . | . . . . Projectile . | . . . . AOE . | . . . . Terrain Rammed . | . . . . Walls Destroyed . | . . . . Machines Disabled . | . . . . Actions | -11 -10 -9 -8 --------- Run | Scr Mat Mat Mat Total 1297 | 78 392 732 95 Wait 53 | . . 49 4 Move 1009 | 66 351 531 61 Hop . | . . . . Pick Up 50 | 5 18 26 1 Fast Attach 10 | 6 3 . 1 Attach 14 | . . 8 6 Detach 1 | . 1 . . Swap 18 | 1 7 5 5 Drop 27 | . 10 16 1 Fire 104 | . . 93 11 Melee . | . . . . Ram 5 | . . . 5 Kick 6 | . 2 4 . Crush . | . . . . Escape Stasis . | . . . . Rewire . | . . . . Trap . | . . . . Miscellaneous . | . . . . Route ------- -11/Scrapyard -10/Materials -9/Materials (discovered 2 exits: [*Mat] / [*Min]) -8/Materials History --------- Turn | Location | Event 23 | -11/Scrapyard | Discovered new exit (range 16) 93 | -11/Scrapyard | Entered Materials 308 | -10/Materials | Build established: Mutant 488 | -10/Materials | Discovered new exit (range 15) 610 | -10/Materials | Entered another Materials area 610 | -9/Materials | Evolved 2 slots: Propulsion x1, Utility x1 917 | -9/Materials | Build established: Hauler-Mutant 1148 | -9/Materials | Discovered new exit (range 16) 1749 | -9/Materials | Discovered new exit (range 15) 1780 | -9/Materials | Entered another Materials area 1780 | -8/Materials | Evolved 2 slots: Utility x1, Weapon x1 1905 | -8/Materials | Core integrity fell below 50% 1927 | -8/Materials | Core integrity fell below 20% 1933 | -8/Materials | Lost 13 parts (1p4n1u7w) 1939 | -8/Materials | Destroyed by G-47 Trooper with Particle Gun Last Messages --------------- 01877_ Med. Laser temporarily disabled. 01877_ Penetrated by Slug. 01877_ Med. Laser destroyed. 01880_ Imp. Terrain Scanner destroyed. 01880_ Med. Laser destroyed. 01888_ Acquired Hvy. Particle Cannon. 01892_ Destroyed Lgt. Nuclear Core. 01898_ Com. Wheel destroyed. 01902_ Hvy. Particle Cannon destroyed. 01908_ Terminal disabled. 01916_ Slammed into G-47 Trooper. 01919_ Penetrated by Slug. 01921_ Slammed into G-47 Trooper. 01922_ Slug penetrates Wall. 01927_ Slammed into G-47 Trooper. 01928_ Slug penetrates Wall. 01932_ Slammed into G-47 Trooper. 01932_ Terrain Scan Processor permanently disabled. 01932_ Destabilizing: Short circuit. 01938_ Slammed into G-47 Trooper. Map ----- +----------------------------------------------------+ | ??????????????????????????????????????? | | ??????????????????????????????????????? | | ??????????????????????????????????????? | | ??????????????????????????????????????? | | ??????????????????????????????????????? | | ??????????????????????????????????????? | | ??????????????????????????????????????? | | ??????????????????????????????????????? | | ??????????????????????????????????????? | | ??????????????????????????????????????? | | ??????????????????????????????????????? | | ??????????????????????????????????????? | | ???????????????? ????????????????????? | | ???????????????? ????????????????????? | | ???????????? ??? ? ??????????????????? | | ??????????????? ??????#?????????????? | | ???????????????? ??] ##?????????????? | | ???? ?????######/#### #?? ???????????? | | ?????????## # #? ??????????? | | ??"??##???# ? #??? ??????????? | | ????????#?# ?? + """??????????? | | ?? ??###??# ?? #?"??????#?????? | | ?? ????#??? ?? #?"????#??#????? | | ??????#?### # ##??#??##??????? | | ??"????##??? ??# ######?##??????? | | ??" ???###???? ? ?# g@ g###?###???? | | ????#???##?#??#+##?## #####/####??#???? | | ??#???####?#### ##### ### #??????? | | ????#?##??##?## #?# #??#???? | | #?#?#?###?#?### ### #?#?#??? | | ############### ! ### #??????? | | %= + ##?##??? | | ######### #??????? | | """"" ##???#??#########?#???? | | """"" ###?##?####??###?#????? | | """"" #??######??##????#?##?? | | #####T#######?####????? | | #??#??#???? | | ##?#?#????? | | #?#?#??#??? | | ########### #########???#?????? | | ?????######## ##???##?##????#???? | | ?? ???#??#####! !!==#??#??##?##?#?#???? | | ?????###??####!!!!==##?#????#????#????? | | ? ???#????###########??#?#?##?????????? | | ??#?#???#??####?##????##???#?????????? | | ??????#??????#????#??#??????#??#????#?? | | ??##?????##???????#???#?#????#????????? | | ???? ??????#?#???#?????#?????#???????? | | ??? ?#?#?##????#??#?????????????????? | +----------------------------------------------------+ Best States ------------- Heat Dissipation 31 Energy Generation 10 Energy Capacity 250 Matter Stores 300 Matter Capacity 300 Sight Range 16 Terrain Scan Range 16 Terrain Scan Density 85 Evasion (%) 40 Item Schematics ----------------- None Robot Schematics ------------------ None Fabricated ------------ Nothing Alien Tech Used ----------------- None Achievements -------------- None Challenges ------------ None Game ------ Seed DefenseRestorationFirepult Manual? 0 Play Time 00:24:39 Cumulative 3.4 hours Start 2021.02.13 @ 02:43:26 End 2021.02.13 @ 03:05:40 Sessions 1 Manual Loads 0 Difficulty Rogue Special Mode None Game No. 5 Rogue 5 Adventurer 0 Explorer 0 Win Type - Total 0 Types 0/0/0/0/0/0/0/0/0 Lore% 3 Gallery% 9 Achievement% 10 Wizard Run 0 Options --------- ASCII 0 Keyboard 1 Movement Arrows Keybinds 0 Fullscreen 2 Font 18/SmallcapsGlow Map View 76x50 Tactical HUD 1 Map Filters NONE Filters NONE Steam 0 RUN: 0be26713-cff2-4377-8c44-54b940a6c346